[Event "Late-Titled-Tuesday-Blitz-October-17-2023"]
[Site "Chess.com"]
[Date "2023.10.17"]
[Round "7"]
[White "Alimpic"]
[Black "GianmarcoVaR"]
[Result "1-0"]
[WhiteElo "2526"]
[BlackElo "2693"]
[TimeControl "180+1"]
[EndTime "15:16:37 PDT"]
[Termination "Alimpic won on time"]

1. Nf3 {[%clk 0:03:00.9]} 1... Nf6 {[%clk 0:02:26.2]} 2. g3 {[%clk 0:03:00.7]}
2... d5 {[%clk 0:02:26.1]} 3. Bg2 {[%clk 0:03:00.3]} 3... Nc6 {[%clk 0:02:24.9]}
4. d4 {[%clk 0:02:58.6]} 4... Bf5 {[%clk 0:02:24.1]} 5. c3 {[%clk 0:02:55.8]}
5... e6 {[%clk 0:02:23.2]} 6. O-O {[%clk 0:02:53.5]} 6... h6 {[%clk 0:02:20.2]}
7. Bf4 {[%clk 0:02:21.1]} 7... Be7 {[%clk 0:02:10.5]} 8. Nbd2 {[%clk 0:02:10.7]}
8... O-O {[%clk 0:02:09.5]} 9. Re1 {[%clk 0:02:09.9]} 9... Ne4 {[%clk
0:02:09.3]} 10. Nxe4 {[%clk 0:02:09.4]} 10... Bxe4 {[%clk 0:02:08.8]} 11. Nd2
{[%clk 0:02:06.9]} 11... Bxg2 {[%clk 0:02:08.5]} 12. Kxg2 {[%clk 0:02:07.8]}
12... Bd6 {[%clk 0:01:57.5]} 13. Bxd6 {[%clk 0:02:07.1]} 13... Qxd6 {[%clk
0:01:54.4]} 14. e4 {[%clk 0:02:06.7]} 14... e5 {[%clk 0:01:55]} 15. dxe5 {[%clk
0:01:54.8]} 15... Nxe5 {[%clk 0:01:54.1]} 16. Nf3 {[%clk 0:01:53.7]} 16... Nxf3
{[%clk 0:01:28.2]} 17. Qxf3 {[%clk 0:01:54.6]} 17... dxe4 {[%clk 0:01:28.1]} 18.
Rxe4 {[%clk 0:01:52.1]} 18... Rad8 {[%clk 0:01:23.1]} 19. Rd4 {[%clk 0:01:49]}
19... Qb6 {[%clk 0:01:21.5]} 20. Rb4 {[%clk 0:01:47.2]} 20... Qc6 {[%clk
0:01:11.5]} 21. Rxb7 {[%clk 0:01:40.9]} 21... Qxf3+ {[%clk 0:01:10]} 22. Kxf3
{[%clk 0:01:41.8]} 22... Rfe8 {[%clk 0:01:08.9]} 23. Rxa7 {[%clk 0:01:27.5]}
23... Rd3+ {[%clk 0:01:09.8]} 24. Kg2 {[%clk 0:01:25.6]} 24... Re2 {[%clk
0:01:09.6]} 25. Rxc7 {[%clk 0:01:18]} 25... Rdd2 {[%clk 0:01:03.7]} 26. Rf1
{[%clk 0:01:12.9]} 26... Rxb2 {[%clk 0:01:03.9]} 27. a4 {[%clk 0:01:10.6]} 27...
Ra2 {[%clk 0:01:04.5]} 28. Rc4 {[%clk 0:01:07.8]} 28... h5 {[%clk 0:00:55.1]}
29. h4 {[%clk 0:01:07.6]} 29... g6 {[%clk 0:00:50]} 30. Rf4 {[%clk 0:01:07.1]}
30... Rec2 {[%clk 0:00:42.9]} 31. Rb1 {[%clk 0:01:04]} 31... f5 {[%clk
0:00:27.4]} 32. Rb7 {[%clk 0:00:54.5]} 32... Kf8 {[%clk 0:00:25.3]} 33. Ra7
{[%clk 0:00:35.9]} 33... Ke8 {[%clk 0:00:22.3]} 34. Rf3 {[%clk 0:00:21.3]} 34...
Ra3 {[%clk 0:00:10.1]} 35. Re3+ {[%clk 0:00:20.2]} 35... Kf8 {[%clk 0:00:07.9]}
36. Rd3 {[%clk 0:00:18.9]} 36... Ke8 {[%clk 0:00:08.6]} 37. Re3+ {[%clk
0:00:17]} 37... Kf8 {[%clk 0:00:07.6]} 38. Re6 {[%clk 0:00:15.9]} 38... Raa2
{[%clk 0:00:06.7]} 39. Rf6+ {[%clk 0:00:14.7]} 39... Ke8 {[%clk 0:00:07.2]} 40.
Re6+ {[%clk 0:00:11]} 40... Kf8 {[%clk 0:00:07.2]} 41. Rf6+ {[%clk 0:00:07.8]}
41... Ke8 {[%clk 0:00:07.9]} 42. Rxg6 {[%clk 0:00:06.2]} 42... Rxf2+ {[%clk
0:00:07.9]} 43. Kg1 {[%clk 0:00:06.9]} 43... Kf8 {[%clk 0:00:02.7]} 44. Rf6+
{[%clk 0:00:06.6]} 44... Ke8 {[%clk 0:00:02.4]} 45. Rb6 {[%clk 0:00:04.9]} 45...
Rg2+ {[%clk 0:00:02.1]} 46. Kf1 {[%clk 0:00:05.4]} 46... Rgf2+ {[%clk
0:00:02.7]} 47. Ke1 {[%clk 0:00:05.9]} 1-0

[Event "Late-Titled-Tuesday-Blitz-October-17-2023"]
[Site "Chess.com"]
[Date "2023.10.17"]
[Round "7"]
[White "mind1mover"]
[Black "Msb2"]
[Result "0-1"]
[WhiteElo "2893"]
[BlackElo "3077"]
[TimeControl "180+1"]
[EndTime "15:16:38 PDT"]
[Termination "Msb2 won on time"]

1. Nf3 {[%clk 0:03:00.9]} 1... d5 {[%clk 0:02:59.4]} 2. b3 {[%clk 0:03:01.1]}
2... e6 {[%clk 0:02:59.4]} 3. Bb2 {[%clk 0:03:01.1]} 3... Nf6 {[%clk 0:03:00.1]}
4. c4 {[%clk 0:02:54.6]} 4... Bd6 {[%clk 0:02:59.4]} 5. cxd5 {[%clk 0:02:54.6]}
5... exd5 {[%clk 0:03:00.3]} 6. e3 {[%clk 0:02:53.5]} 6... O-O {[%clk
0:03:00.3]} 7. Be2 {[%clk 0:02:53.5]} 7... c6 {[%clk 0:03:00.5]} 8. O-O {[%clk
0:02:53.2]} 8... Bg4 {[%clk 0:03:01.3]} 9. d3 {[%clk 0:02:52.1]} 9... Nbd7
{[%clk 0:03:01.6]} 10. Nbd2 {[%clk 0:02:52]} 10... Re8 {[%clk 0:03:01.5]} 11. h3
{[%clk 0:02:52.6]} 11... Bh5 {[%clk 0:03:01.8]} 12. a3 {[%clk 0:02:52.8]} 12...
a5 {[%clk 0:03:01.9]} 13. Re1 {[%clk 0:02:53.5]} 13... h6 {[%clk 0:02:54.9]} 14.
Qc2 {[%clk 0:02:51.2]} 14... Bg6 {[%clk 0:02:55.1]} 15. Bf1 {[%clk 0:02:50]}
15... Qe7 {[%clk 0:02:51.7]} 16. Nd4 {[%clk 0:02:21.4]} 16... Rac8 {[%clk
0:02:46.4]} 17. Bc3 {[%clk 0:02:09.1]} 17... b6 {[%clk 0:02:40]} 18. Bb2 {[%clk
0:02:01.9]} 18... c5 {[%clk 0:02:39.7]} 19. Nb5 {[%clk 0:02:00.7]} 19... Bb8
{[%clk 0:02:40.4]} 20. Nf3 {[%clk 0:01:40.7]} 20... Nh7 {[%clk 0:02:32.2]} 21.
g3 {[%clk 0:01:18.9]} 21... Ng5 {[%clk 0:02:29.9]} 22. Nh4 {[%clk 0:01:04.9]}
22... Bh7 {[%clk 0:02:29.4]} 23. Qd1 {[%clk 0:00:50.5]} 23... Ne6 {[%clk
0:02:12.2]} 24. Bg2 {[%clk 0:00:47.7]} 24... Be5 {[%clk 0:02:06.9]} 25. d4
{[%clk 0:00:43.1]} 25... Bf6 {[%clk 0:02:02.6]} 26. Nf3 {[%clk 0:00:34.2]} 26...
c4 {[%clk 0:01:45.3]} 27. a4 {[%clk 0:00:27.3]} 27... Qb4 {[%clk 0:01:03.8]} 28.
Nd2 {[%clk 0:00:16.4]} 28... Qf8 {[%clk 0:00:39.3]} 29. Bxd5 {[%clk 0:00:13.8]}
29... cxb3 {[%clk 0:00:33.7]} 30. Qxb3 {[%clk 0:00:14.7]} 30... Kh8 {[%clk
0:00:28.9]} 31. Rac1 {[%clk 0:00:12.3]} 31... Be7 {[%clk 0:00:27.4]} 32. Bc6
{[%clk 0:00:11.2]} 32... Rcd8 {[%clk 0:00:26.2]} 33. Nc4 {[%clk 0:00:10.3]}
33... Bb4 {[%clk 0:00:26.2]} 34. Bc3 {[%clk 0:00:10.3]} 34... Ng5 {[%clk
0:00:25.6]} 35. h4 {[%clk 0:00:06.4]} 35... Ne4 {[%clk 0:00:25.8]} 36. Bxb4
{[%clk 0:00:07.1]} 36... axb4 {[%clk 0:00:26.4]} 37. d5 {[%clk 0:00:04]} 37...
Ndc5 {[%clk 0:00:26.3]} 38. Qxb4 {[%clk 0:00:04.4]} 38... Re7 {[%clk 0:00:22.2]}
39. Nxb6 {[%clk 0:00:04.9]} 39... Nd3 {[%clk 0:00:22.6]} 40. Qd4 {[%clk
0:00:02.9]} 40... Nexf2 {[%clk 0:00:16.5]} 41. d6 {[%clk 0:00:03.3]} 41... Re6
{[%clk 0:00:16.5]} 42. Nc4 {[%clk 0:00:01.6]} 42... Nxe1 {[%clk 0:00:16.7]} 43.
Rxe1 {[%clk 0:00:01.9]} 43... Nd3 {[%clk 0:00:17.4]} 44. Rd1 {[%clk 0:00:02]}
44... Nb4 {[%clk 0:00:15.9]} 45. Bg2 {[%clk 0:00:02.6]} 45... Nc2 {[%clk
0:00:15.9]} 46. Qc3 {[%clk 0:00:02.4]} 46... Qe8 {[%clk 0:00:13.5]} 47. Rd2
{[%clk 0:00:02.6]} 47... Nxe3 {[%clk 0:00:13.8]} 48. Nb6 {[%clk 0:00:02.3]}
48... Nxg2 {[%clk 0:00:12.9]} 49. Kxg2 {[%clk 0:00:02.9]} 49... Re2+ {[%clk
0:00:13.3]} 50. Rxe2 {[%clk 0:00:03.5]} 50... Qxe2+ {[%clk 0:00:14.2]} 51. Kg1
{[%clk 0:00:04.1]} 51... Be4 {[%clk 0:00:14.1]} 0-1

[Event "Late-Titled-Tuesday-Blitz-October-17-2023"]
[Site "Chess.com"]
[Date "2023.10.17"]
[Round "7"]
[White "sari07"]
[Black "protectiago"]
[Result "1-0"]
[WhiteElo "2323"]
[BlackElo "2077"]
[TimeControl "180+1"]
[EndTime "15:16:38 PDT"]
[Termination "sari07 won on time"]

1. Nf3 {[%clk 0:02:10.9]} 1... Nf6 {[%clk 0:02:55]} 2. c4 {[%clk 0:02:10.4]}
2... g6 {[%clk 0:02:52.5]} 3. Nc3 {[%clk 0:02:07.9]} 3... d5 {[%clk 0:02:40.7]}
4. cxd5 {[%clk 0:02:08.8]} 4... Nxd5 {[%clk 0:02:40.9]} 5. e4 {[%clk 0:02:07]}
5... Nxc3 {[%clk 0:02:40.7]} 6. dxc3 {[%clk 0:02:07.9]} 6... Qxd1+ {[%clk
0:02:40.2]} 7. Kxd1 {[%clk 0:02:08.8]} 7... Bg7 {[%clk 0:02:38.3]} 8. h4 {[%clk
0:01:55.7]} 8... O-O {[%clk 0:02:34]} 9. h5 {[%clk 0:01:53.1]} 9... Rd8+ {[%clk
0:02:29.4]} 10. Kc2 {[%clk 0:01:52.4]} 10... Nd7 {[%clk 0:02:20.8]} 11. Bc4
{[%clk 0:01:43.8]} 11... Nc5 {[%clk 0:02:17.5]} 12. hxg6 {[%clk 0:01:30.1]}
12... hxg6 {[%clk 0:02:15.8]} 13. Ng5 {[%clk 0:01:26.8]} 13... e6 {[%clk
0:01:54.8]} 14. Be3 {[%clk 0:01:23.5]} 14... b6 {[%clk 0:01:12.6]} 15. Rad1
{[%clk 0:01:07.7]} 15... Ba6 {[%clk 0:01:11.9]} 16. Bxa6 {[%clk 0:00:42.8]}
16... Nxa6 {[%clk 0:01:11.8]} 17. f4 {[%clk 0:00:40.2]} 17... c5 {[%clk
0:01:06.6]} 18. e5 {[%clk 0:00:38.5]} 18... Nc7 {[%clk 0:00:39.2]} 19. c4 {[%clk
0:00:37.8]} 19... f6 {[%clk 0:00:30.9]} 20. exf6 {[%clk 0:00:35.4]} 20... Bxf6
{[%clk 0:00:31.2]} 21. Ne4 {[%clk 0:00:35.9]} 21... Kg7 {[%clk 0:00:27.3]} 22.
Nxf6 {[%clk 0:00:28.8]} 22... Kxf6 {[%clk 0:00:27.5]} 23. Bd2 {[%clk 0:00:29.7]}
23... Kf5 {[%clk 0:00:24.6]} 24. Rde1 {[%clk 0:00:24.5]} 24... Rd4 {[%clk
0:00:21.7]} 25. Re5+ {[%clk 0:00:17.6]} 25... Kf6 {[%clk 0:00:20.4]} 26. Bc3
{[%clk 0:00:13.7]} 26... Rxf4 {[%clk 0:00:20.3]} 27. Rxc5+ {[%clk 0:00:12.8]}
27... e5 {[%clk 0:00:12.7]} 28. Bxe5+ {[%clk 0:00:09]} 28... Ke6 {[%clk
0:00:10.3]} 29. Bxf4 {[%clk 0:00:07.4]} 29... bxc5 {[%clk 0:00:10.3]} 30. Bxc7
{[%clk 0:00:08]} 30... Rf8 {[%clk 0:00:09.3]} 31. Re1+ {[%clk 0:00:05]} 31...
Kd7 {[%clk 0:00:09.3]} 32. Bg3 {[%clk 0:00:04.4]} 32... Rf5 {[%clk 0:00:08.5]}
33. Re5 {[%clk 0:00:03.6]} 33... Rf1 {[%clk 0:00:06.9]} 34. Rxc5 {[%clk
0:00:03.6]} 34... Rg1 {[%clk 0:00:07]} 35. Rd5+ {[%clk 0:00:03.8]} 35... Ke7
{[%clk 0:00:07.1]} 36. Rd2 {[%clk 0:00:02.7]} 36... Ke6 {[%clk 0:00:07.7]} 37.
c5 {[%clk 0:00:02.7]} 37... g5 {[%clk 0:00:07.5]} 38. c6 {[%clk 0:00:03]} 38...
Rh1 {[%clk 0:00:04]} 39. c7 {[%clk 0:00:03.5]} 39... Rh8 {[%clk 0:00:04.8]} 40.
Rd8 {[%clk 0:00:03.4]} 40... Rh7 {[%clk 0:00:04.3]} 41. c8=Q+ {[%clk 0:00:03.8]}
41... Kf6 {[%clk 0:00:01.8]} 42. Rf8+ {[%clk 0:00:03.9]} 42... Kg6 {[%clk
0:00:02]} 43. Qe8+ {[%clk 0:00:04.4]} 1-0

[Event "Late-Titled-Tuesday-Blitz-October-17-2023"]
[Site "Chess.com"]
[Date "2023.10.17"]
[Round "7"]
[White "imdvb6307"]
[Black "TheMagician"]
[Result "0-1"]
[WhiteElo "2485"]
[BlackElo "2220"]
[TimeControl "180+1"]
[EndTime "15:16:42 PDT"]
[Termination "TheMagician won on time"]

1. d4 {[%clk 0:03:00.9]} 1... Nf6 {[%clk 0:02:56.9]} 2. Nf3 {[%clk 0:03:00.8]}
2... b6 {[%clk 0:02:52.2]} 3. g3 {[%clk 0:02:55.9]} 3... Bb7 {[%clk 0:02:52.1]}
4. Bg2 {[%clk 0:02:56.2]} 4... e6 {[%clk 0:02:52.1]} 5. O-O {[%clk 0:02:55.8]}
5... Be7 {[%clk 0:02:51.7]} 6. c4 {[%clk 0:02:55.2]} 6... O-O {[%clk 0:02:51.1]}
7. Nc3 {[%clk 0:02:55.2]} 7... d5 {[%clk 0:02:50.3]} 8. cxd5 {[%clk 0:02:54.7]}
8... Nxd5 {[%clk 0:02:49.7]} 9. Qc2 {[%clk 0:02:46.9]} 9... Nd7 {[%clk
0:02:18.3]} 10. e4 {[%clk 0:02:42.9]} 10... Nxc3 {[%clk 0:02:15.4]} 11. bxc3
{[%clk 0:02:42.5]} 11... c5 {[%clk 0:02:14.5]} 12. Be3 {[%clk 0:02:27.8]} 12...
cxd4 {[%clk 0:02:11.7]} 13. cxd4 {[%clk 0:02:21.8]} 13... Rc8 {[%clk 0:02:12.1]}
14. Qb1 {[%clk 0:02:22.2]} 14... Nf6 {[%clk 0:02:06.2]} 15. Ne5 {[%clk
0:02:20.9]} 15... Rc7 {[%clk 0:02:01.7]} 16. a4 {[%clk 0:02:18.4]} 16... Qa8
{[%clk 0:02:01]} 17. f3 {[%clk 0:02:16.2]} 17... Rfc8 {[%clk 0:01:57.9]} 18. Rf2
{[%clk 0:02:03.9]} 18... Nd7 {[%clk 0:01:48.3]} 19. Nxd7 {[%clk 0:01:49]} 19...
Rxd7 {[%clk 0:01:48.2]} 20. a5 {[%clk 0:01:49.2]} 20... bxa5 {[%clk 0:01:43.5]}
21. Rxa5 {[%clk 0:01:47.4]} 21... a6 {[%clk 0:01:38.5]} 22. Bf1 {[%clk
0:01:41.3]} 22... Bf6 {[%clk 0:01:34.3]} 23. Qa1 {[%clk 0:01:37.7]} 23... Rdc7
{[%clk 0:01:14.6]} 24. Bxa6 {[%clk 0:01:07.4]} 24... Bxa6 {[%clk 0:01:11.1]} 25.
Rxa6 {[%clk 0:01:07]} 25... Qb7 {[%clk 0:01:11.2]} 26. Rb2 {[%clk 0:00:56.2]}
26... Rc1+ {[%clk 0:00:53]} 27. Bxc1 {[%clk 0:00:55.2]} 27... Bxd4+ {[%clk
0:00:52.9]} 28. Kh1 {[%clk 0:00:47.7]} 28... Bxb2 {[%clk 0:00:44.4]} 29. Bxb2
{[%clk 0:00:45.9]} 29... Qb3 {[%clk 0:00:42.7]} 30. Ra3 {[%clk 0:00:40.7]} 30...
Qc2 {[%clk 0:00:38.5]} 31. Bxg7 {[%clk 0:00:25.4]} 31... f6 {[%clk 0:00:29.8]}
32. Bxf6 {[%clk 0:00:22.1]} 32... Qd2 {[%clk 0:00:26.3]} 33. Rc3 {[%clk
0:00:16.6]} 33... Rxc3 {[%clk 0:00:22]} 34. Qxc3 {[%clk 0:00:15.5]} 34... Qf2
{[%clk 0:00:22]} 35. Qc1 {[%clk 0:00:08.6]} 35... Qxf3+ {[%clk 0:00:21.1]} 36.
Kg1 {[%clk 0:00:09.1]} 36... Qxf6 {[%clk 0:00:21.8]} 37. Qf4 {[%clk 0:00:08.7]}
37... Kg7 {[%clk 0:00:22.3]} 38. Qxf6+ {[%clk 0:00:08.1]} 38... Kxf6 {[%clk
0:00:22.5]} 39. Kf2 {[%clk 0:00:08.7]} 39... Ke5 {[%clk 0:00:23.1]} 40. Ke3
{[%clk 0:00:09.2]} 40... h5 {[%clk 0:00:23.2]} 41. h3 {[%clk 0:00:08.8]} 41...
Kf6 {[%clk 0:00:21.8]} 42. Kf4 {[%clk 0:00:09.1]} 42... e5+ {[%clk 0:00:21.5]}
43. Ke3 {[%clk 0:00:09.5]} 43... Kg5 {[%clk 0:00:21.3]} 44. Kd3 {[%clk
0:00:09.5]} 44... h4 {[%clk 0:00:21.4]} 45. g4 {[%clk 0:00:10.1]} 45... Kf4
{[%clk 0:00:21.3]} 46. Ke2 {[%clk 0:00:04.8]} 46... Kxe4 {[%clk 0:00:21.4]} 47.
Kf2 {[%clk 0:00:04.3]} 47... Kf4 {[%clk 0:00:21.5]} 48. Kg2 {[%clk 0:00:02.3]}
48... Ke4 {[%clk 0:00:20.4]} 49. Kf1 {[%clk 0:00:01.5]} 49... Kf4 {[%clk
0:00:20.8]} 50. Kf2 {[%clk 0:00:01.8]} 50... Ke4 {[%clk 0:00:20.5]} 51. Ke2
{[%clk 0:00:02.2]} 51... Kf4 {[%clk 0:00:20.8]} 0-1

[Event "Late-Titled-Tuesday-Blitz-October-17-2023"]
[Site "Chess.com"]
[Date "2023.10.17"]
[Round "7"]
[White "Mariia89"]
[Black "scandalgod"]
[Result "1/2-1/2"]
[WhiteElo "2135"]
[BlackElo "2491"]
[TimeControl "180+1"]
[EndTime "15:16:46 PDT"]
[Termination "Game drawn by repetition"]

1. d4 {[%clk 0:03:00]} 1... d5 {[%clk 0:02:59.5]} 2. c4 {[%clk 0:03:00.4]} 2...
c6 {[%clk 0:02:59.7]} 3. e3 {[%clk 0:03:00.6]} 3... Nf6 {[%clk 0:02:59.5]} 4.
Nc3 {[%clk 0:03:01.1]} 4... a6 {[%clk 0:02:56.1]} 5. Nf3 {[%clk 0:03:00.8]} 5...
Bf5 {[%clk 0:02:55.7]} 6. a3 {[%clk 0:02:59.3]} 6... e6 {[%clk 0:02:55.7]} 7. b4
{[%clk 0:02:59.1]} 7... Nbd7 {[%clk 0:02:54.7]} 8. Bb2 {[%clk 0:02:59.8]} 8...
Bd6 {[%clk 0:02:54.5]} 9. h3 {[%clk 0:02:59.7]} 9... h6 {[%clk 0:02:54.3]} 10.
g4 {[%clk 0:03:00.1]} 10... Be4 {[%clk 0:02:53.9]} 11. Bg2 {[%clk 0:02:59.6]}
11... dxc4 {[%clk 0:02:50.6]} 12. Nxe4 {[%clk 0:02:56.8]} 12... Nxe4 {[%clk
0:02:48.5]} 13. Qc2 {[%clk 0:02:54.2]} 13... c3 {[%clk 0:02:36.4]} 14. Bxc3
{[%clk 0:02:51.1]} 14... Nxc3 {[%clk 0:02:36]} 15. Qxc3 {[%clk 0:02:52]} 15...
Qe7 {[%clk 0:02:30.9]} 16. Rc1 {[%clk 0:02:45.4]} 16... O-O {[%clk 0:02:28.4]}
17. Ne5 {[%clk 0:02:38.9]} 17... a5 {[%clk 0:02:23.4]} 18. Rb1 {[%clk
0:02:04.6]} 18... axb4 {[%clk 0:02:11.7]} 19. axb4 {[%clk 0:02:04]} 19... Ra2
{[%clk 0:02:11.5]} 20. O-O {[%clk 0:02:01.4]} 20... Rfa8 {[%clk 0:01:49.3]} 21.
b5 {[%clk 0:02:01.1]} 21... R8a3 {[%clk 0:01:47.4]} 22. Rb3 {[%clk 0:01:50.3]}
22... Rxb3 {[%clk 0:01:38.7]} 23. Qxb3 {[%clk 0:01:50.4]} 23... Ra3 {[%clk
0:01:37.3]} 24. Qb2 {[%clk 0:01:50.8]} 24... cxb5 {[%clk 0:01:26.1]} 25. Qxb5
{[%clk 0:01:44.3]} 25... Bxe5 {[%clk 0:00:41.5]} 26. dxe5 {[%clk 0:01:43.2]}
26... b6 {[%clk 0:00:41.7]} 27. Rd1 {[%clk 0:01:37.5]} 27... Nf8 {[%clk
0:00:27.3]} 28. Qxb6 {[%clk 0:01:32]} 28... Ra2 {[%clk 0:00:25.8]} 29. Be4
{[%clk 0:01:26.2]} 29... Qh4 {[%clk 0:00:21.8]} 30. Bh7+ {[%clk 0:00:36.5]}
30... Nxh7 {[%clk 0:00:18.3]} 31. Rd8+ {[%clk 0:00:33.6]} 31... Nf8 {[%clk
0:00:18.4]} 32. Rxf8+ {[%clk 0:00:33.8]} 32... Kxf8 {[%clk 0:00:18.1]} 33. Qb8+
{[%clk 0:00:34]} 33... Ke7 {[%clk 0:00:17.4]} 34. Qd6+ {[%clk 0:00:24.8]} 34...
Ke8 {[%clk 0:00:17.3]} 35. Qc6+ {[%clk 0:00:23.6]} 35... Kf8 {[%clk 0:00:10.5]}
36. Qc8+ {[%clk 0:00:23.6]} 36... Ke7 {[%clk 0:00:08.6]} 37. Qc7+ {[%clk
0:00:12]} 37... Ke8 {[%clk 0:00:08.2]} 38. Qc6+ {[%clk 0:00:11.9]} 38... Kd8
{[%clk 0:00:08.3]} 39. Qd6+ {[%clk 0:00:09.6]} 39... Kc8 {[%clk 0:00:06.3]} 40.
Qc6+ {[%clk 0:00:09.4]} 40... Kb8 {[%clk 0:00:06.1]} 41. Qb6+ {[%clk 0:00:09.5]}
41... Kc8 {[%clk 0:00:06]} 42. Qc6+ {[%clk 0:00:10]} 42... Kd8 {[%clk
0:00:06.4]} 43. Qd6+ {[%clk 0:00:09.2]} 43... Ke8 {[%clk 0:00:06.7]} 44. Qb8+
{[%clk 0:00:09.6]} 44... Kd7 {[%clk 0:00:06.2]} 45. Qb7+ {[%clk 0:00:09.6]}
45... Ke8 {[%clk 0:00:06.2]} 46. Qc6+ {[%clk 0:00:10.3]} 1/2-1/2

[Event "Late-Titled-Tuesday-Blitz-October-17-2023"]
[Site "Chess.com"]
[Date "2023.10.17"]
[Round "7"]
[White "dosto07"]
[Black "YouShallNotPass001"]
[Result "1-0"]
[WhiteElo "2508"]
[BlackElo "2393"]
[TimeControl "180+1"]
[EndTime "15:16:53 PDT"]
[Termination "dosto07 won by resignation"]

1. e4 {[%clk 0:03:00.9]} 1... c5 {[%clk 0:03:00.1]} 2. Nf3 {[%clk 0:03:00]} 2...
g6 {[%clk 0:03:00.6]} 3. d4 {[%clk 0:02:59.7]} 3... cxd4 {[%clk 0:03:00]} 4.
Qxd4 {[%clk 0:03:00.4]} 4... Nf6 {[%clk 0:02:59.7]} 5. Nc3 {[%clk 0:03:00.7]}
5... Nc6 {[%clk 0:02:59.5]} 6. Qa4 {[%clk 0:03:01.4]} 6... d6 {[%clk 0:02:53.9]}
7. e5 {[%clk 0:03:01.5]} 7... dxe5 {[%clk 0:02:54]} 8. Nxe5 {[%clk 0:03:01.9]}
8... Bd7 {[%clk 0:02:54.5]} 9. Nxd7 {[%clk 0:03:02.1]} 9... Qxd7 {[%clk
0:02:55.1]} 10. Be2 {[%clk 0:03:02.5]} 10... Bg7 {[%clk 0:02:53.6]} 11. O-O
{[%clk 0:03:02.4]} 11... O-O {[%clk 0:02:52.5]} 12. Rd1 {[%clk 0:03:02.6]} 12...
Qe6 {[%clk 0:02:45]} 13. Qc4 {[%clk 0:02:52.8]} 13... Qxc4 {[%clk 0:02:44]} 14.
Bxc4 {[%clk 0:02:52.8]} 14... Rfd8 {[%clk 0:02:44.3]} 15. Be3 {[%clk 0:02:41.5]}
15... Ng4 {[%clk 0:02:29.2]} 16. Bc5 {[%clk 0:02:06.8]} 16... b6 {[%clk
0:01:48.1]} 17. Ba3 {[%clk 0:02:06.6]} 17... Bd4 {[%clk 0:01:38.4]} 18. Ne4
{[%clk 0:01:28.2]} 18... e6 {[%clk 0:01:19.8]} 19. c3 {[%clk 0:01:22.2]} 19...
Be5 {[%clk 0:00:51]} 20. h3 {[%clk 0:01:18.4]} 20... Nf6 {[%clk 0:00:51.3]} 21.
Nxf6+ {[%clk 0:01:16.1]} 21... Bxf6 {[%clk 0:00:52.2]} 22. Ba6 {[%clk
0:01:15.8]} 22... Rxd1+ {[%clk 0:00:48]} 23. Rxd1 {[%clk 0:01:14.9]} 23... Rd8
{[%clk 0:00:48.4]} 24. Rxd8+ {[%clk 0:01:10]} 24... Bxd8 {[%clk 0:00:43.1]} 25.
Kf1 {[%clk 0:01:09.8]} 25... Be7 {[%clk 0:00:36.9]} 26. Bxe7 {[%clk 0:01:06.1]}
26... Nxe7 {[%clk 0:00:37.8]} 27. Bb7 {[%clk 0:01:02.6]} 27... f5 {[%clk
0:00:30.5]} 28. Ke2 {[%clk 0:01:01.5]} 28... e5 {[%clk 0:00:30.4]} 29. Kd3
{[%clk 0:00:59.3]} 29... Kf7 {[%clk 0:00:30.3]} 30. Kc4 {[%clk 0:00:58.9]} 30...
Ke6 {[%clk 0:00:26.7]} 31. Kb5 {[%clk 0:00:58.2]} 31... Nd5 {[%clk 0:00:24.2]}
32. Ka6 {[%clk 0:00:51.5]} 32... e4 {[%clk 0:00:20.9]} 33. Kxa7 {[%clk
0:00:44.7]} 33... f4 {[%clk 0:00:20.5]} 34. c4 {[%clk 0:00:30.9]} 34... Nf6
{[%clk 0:00:13.6]} 35. Kxb6 {[%clk 0:00:29.3]} 35... g5 {[%clk 0:00:13.9]} 36.
c5 {[%clk 0:00:25]} 36... Ke5 {[%clk 0:00:14.4]} 37. c6 {[%clk 0:00:21.5]} 37...
Ne8 {[%clk 0:00:14.9]} 38. c7 {[%clk 0:00:20.3]} 38... Nxc7 {[%clk 0:00:15.4]}
39. Kxc7 {[%clk 0:00:20.5]} 39... h5 {[%clk 0:00:15.2]} 40. f3 {[%clk
0:00:13.4]} 40... e3 {[%clk 0:00:13.8]} 41. Ba6 {[%clk 0:00:13.3]} 41... Kd4
{[%clk 0:00:12.6]} 42. b4 {[%clk 0:00:12.9]} 42... Kc3 {[%clk 0:00:12.6]} 43. a3
{[%clk 0:00:12]} 43... Kd2 {[%clk 0:00:12.2]} 44. Bc4 {[%clk 0:00:10.7]} 44...
e2 {[%clk 0:00:13.1]} 45. Bxe2 {[%clk 0:00:10.7]} 45... Kxe2 {[%clk 0:00:14]}
46. b5 {[%clk 0:00:11.3]} 46... Kf2 {[%clk 0:00:14.6]} 47. b6 {[%clk 0:00:11.4]}
47... Kxg2 {[%clk 0:00:15.5]} 48. b7 {[%clk 0:00:12]} 48... Kxf3 {[%clk
0:00:16.4]} 49. b8=Q {[%clk 0:00:12.1]} 49... Kg3 {[%clk 0:00:17.3]} 50. Qg8
{[%clk 0:00:11.6]} 50... g4 {[%clk 0:00:17]} 51. Qb3+ {[%clk 0:00:11.1]} 51...
f3 {[%clk 0:00:17.3]} 52. hxg4 {[%clk 0:00:11.4]} 52... hxg4 {[%clk 0:00:17.5]}
53. a4 {[%clk 0:00:11.7]} 53... Kg2 {[%clk 0:00:17.7]} 54. Qc4 {[%clk
0:00:11.3]} 54... g3 {[%clk 0:00:17.5]} 55. Qe4 {[%clk 0:00:11.2]} 55... Kf2
{[%clk 0:00:17.2]} 56. a5 {[%clk 0:00:11.3]} 56... g2 {[%clk 0:00:17.4]} 57.
Qd4+ {[%clk 0:00:11.8]} 57... Kg3 {[%clk 0:00:17]} 58. Qe5+ {[%clk 0:00:11.4]}
58... Kf2 {[%clk 0:00:17.2]} 59. Qc5+ {[%clk 0:00:10.9]} 59... Kg3 {[%clk
0:00:17.4]} 60. Qe3 {[%clk 0:00:10.2]} 60... Kh2 {[%clk 0:00:14.4]} 61. Qxf3
{[%clk 0:00:09.2]} 61... g1=Q {[%clk 0:00:14.5]} 62. Qh5+ {[%clk 0:00:09.4]}
62... Kg3 {[%clk 0:00:14.9]} 63. Qg5+ {[%clk 0:00:09.8]} 63... Kf2 {[%clk
0:00:15.8]} 64. Qxg1+ {[%clk 0:00:10.2]} 64... Kxg1 {[%clk 0:00:16.7]} 65. a6
{[%clk 0:00:10.6]} 1-0